Workbook

Sheet Device-A
A1: v1.01 | B1: ABCD 2021 AAPOS Validation Assistant | L1: -Esotropia | M1: RETINOSCOPY | V1: >3 | W1: age<4 | AA1: <2 D | AB1: >3 D | AJ1: Autorefractor | AU1: sensitive | AW1: <-2 | AX1: 1.75 | AY1: >3 | AZ1: 1.5 | BA1: 2.25 | BB1: 1.5 | BC1: 2.5 | BD1: 1
J2: Visual acuity | L2: +Exotropia | M2: X = Exam | V2: >1.75 | W2: age≥4 | AA2: <3 D | AB2: >1.75 D | AQ2: refer | AU2: regular | AW2: <-3 | AX2: 2 | AY2: >3.5 | AZ2: 1.75 | BA2: 2.75 | BB2: 1.75 | BC2: 3 | BD2: 1.25
J3: c s m is centered steady maintained fixation | Y3: ∆merid-myopia | AD3: Are Risk Factors Present? | AJ3: sphere | AK3: cylinder | AL3: axis | AQ3: pass | AU3: specific | AW3: <-3.5 | AX3: 2.5 | AY3: >4.25 | AZ3: 2.25 | BA3: 3 | BB3: 2.25 | BC3: 3.5 | BD3: 1.75
AQ4: inconcl | BE4: Age-based
B5: Series | C5: order | D5: Age | E5: Gender | F5: First | G5: Last | H5: BD | I5: Exam date | J5: VaR | K5: VaL | L5: Tropia | M5: SphR | N5: CylR | O5: AxisR | P5: SphL | Q5: CylL | R5: axisL | S5: XRsp | T5: xLsp | U5: xaniso | V5: xmax cyl | W5: meridM | X5: meridH | Y5: merAni | Z5: agegroup <4y? | AA5: cutoff-M | AB5: cutoff-Cyl | AC5: Hyperopa? | AD5: Anisometropia? | AE5: Astigmatism? | AF5: Myopia? | AG5: Strabismus? | AH5: refract. ARF? | AI5: ARF? | AJ5: a-SpR | AK5: a-CylR | AL5: a-axR | AM5: a-SpL | AN5: a-CylL | AO5: a-axL | AP5: Align? | AQ5: ?refer? | AR5: Refract Valid | AS5: Valid 2x2 | AT5: use these to build ROC ---> | AU5: aSphEqr | AV5: aSphEql | AW5: myom3 | AX5: myom2 | AY5: hypmerid | AZ5: anismerid | BA5: cyl3max | BB5: cyl1.7max | BC5: hmax | BD5: anisoSEq | BE5: ROC build --> | BF5: PxSp<4 | BG5: PxRef<4 | BH5: PxSen<4 | BI5: PxSp>4 | BJ5: PxRef>4 | BK5: PxSen>4
B6: Device-A | C6: 1 | D6: =(I6-H6)/365.24 -> 8.5 | E6: m | F6: Donald | G6: Duck | H6: 2004-07-21 | I6: 2013-01-04 | J6: 20 | K6: 400 | L6: -15 | M6: 0.25 | N6: 0 | O6: 0 | P6: -2.5 | Q6: 0.25 | R6: 75 | S6: =M6+N6/2 -> 0.25 | T6: =P6+Q6/2 -> -2.375 | U6: =ABS(S6-T6) -> 2.625 | V6: =MAX(N6,Q6) -> 0.25 | W6: =MIN((S6-ABS(N6/2)),(T6-ABS(Q6/2))) -> -2.5 | X6: =MAX((S6+ABS(N6/22)),(T6+ABS(Q6/2))) -> 0.25 | Y6: =ABS((S6-ABS(N6/2))-(T6-ABS(Q6/2))) -> 2.75 | Z6: =IF(D6<4,"preschool","school") -> school | AA6: =IF(D6<4,-3,-2) -> -2 | AB6: =IF(D6<4,3,1.75) -> 1.75 | AC6: =IF(X6>4,"T","F") -> F | AD6: =IF(Y6>1.25, "T","F") -> T | AE6: =IF(V6>AB6,"T","F") -> F | AF6: =IF(W6<AA6,"T","F") -> T | AG6: =IF(ABS(L6)>8,"T","F") -> T | AH6: =IF(OR(EXACT("T",AC6:AF6)),"T","F") -> T | AI6: =OR(EXACT("T",AC6:AG6)) -> TRUE | AJ6: 0.75 | AK6: 0.25 | AL6: 100 | AM6: -0.5 | AN6: 0.5 | AO6: 90 | AP6: r | AQ6: refer | AR6: =IF(AND(AH6="T",AQ6="refer"),"A",IF(AND(AH6="T",AQ6="pass"),"C",IF(AND(AH6="F",AQ6="refer"),"B","D"))) -> A | AS6: =IF(AND(AI6=TRUE,AQ6="refer"),"A",IF(AND(AI6=TRUE,AQ6="pass"),"C",IF(AND(AI6=FALSE,AQ6="refer"),"B","D"))) -> A | AU6: =AJ6+AK6/2 -> 0.875 | AV6: =AM6+AN6/2 -> -0.25 | AW6: =MIN((AU6-ABS(AK6/2)),(AV6-ABS(AN6/2))) -> -0.5 | AX6: =MIN((AU6-ABS(AK6/2)),(AV6-ABS(AN6/2))) -> -0.5 | AY6: =MAX((AU6+ABS(AK6/2)),(AV6+ABS(AN6/2))) -> 1 | AZ6: =ABS((AU6-ABS(AK6/2))-(AV6-ABS(AN6/2))) -> 1.25 | BA6: =MAX(ABS(AK6),ABS(AN6)) -> 0.5 | BB6: =MAX(ABS(AK6),ABS(AN6)) -> 0.5 | BC6: =MAX(AU6,AV6) -> 0.875 | BD6: =ABS(AU6-AV6) -> 1.125
B7: Device-A | C7: =1+C6 -> 2 | D7: =(I7-H7)/365.24 -> 1.1 | E7: m | F7: Wiley | G7: Coyote | H7: 2011-12-18 | I7: 2013-01-15 | J7: scm | K7: csm | L7: 5 | M7: 1.25 | N7: 0.5 | O7: 95 | P7: 1.5 | Q7: 0.25 | R7: 85 | S7: =M7+N7/2 -> 1.5 | T7: =P7+Q7/2 -> 1.625 | U7: =ABS(S7-T7) -> 0.125 | V7: =MAX(N7,Q7) -> 0.50 | W7: =MIN((S7-ABS(N7/2)),(T7-ABS(Q7/2))) -> 1.25 | X7: =MAX((S7+ABS(N7/22)),(T7+ABS(Q7/2))) -> 1.75 | Y7: =ABS((S7-ABS(N7/2))-(T7-ABS(Q7/2))) -> 0.25 | Z7: =IF(D7<4,"preschool","school") -> preschool | AA7: =IF(D7<4,-3,-2) -> -3 | AB7: =IF(D7<4,3,1.75) -> 3 | AC7: =IF(X7>4,"T","F") -> F | AD7: =IF(Y7>1.25, "T","F") -> F | AE7: =IF(V7>AB7,"T","F") -> F | AF7: =IF(W7<AA7,"T","F") -> F | AG7: =IF(ABS(L7)>8,"T","F") -> F | AH7: =IF(OR(EXACT("T",AC7:AF7)),"T","F") -> F | AI7: =OR(EXACT("T",AC7:AG7)) -> FALSE | AJ7: 1.75 | AK7: 0.5 | AL7: 102 | AM7: 1.25 | AN7: 0.25 | AO7: 106 | AQ7: pass | AR7: =IF(AND(AH7="T",AQ7="refer"),"A",IF(AND(AH7="T",AQ7="pass"),"C",IF(AND(AH7="F",AQ7="refer"),"B","D"))) -> D | AS7: =IF(AND(AI7=TRUE,AQ7="refer"),"A",IF(AND(AI7=TRUE,AQ7="pass"),"C",IF(AND(AI7=FALSE,AQ7="refer"),"B","D"))) -> D | AU7: =AJ7+AK7/2 -> 2 | AV7: =AM7+AN7/2 -> 1.375 | AW7: =MIN((AU7-ABS(AK7/2)),(AV7-ABS(AN7/2))) -> 1.25 | AX7: =MIN((AU7-ABS(AK7/2)),(AV7-ABS(AN7/2))) -> 1.25 | AY7: =MAX((AU7+ABS(AK7/2)),(AV7+ABS(AN7/2))) -> 2.25 | AZ7: =ABS((AU7-ABS(AK7/2))-(AV7-ABS(AN7/2))) -> 0.5 | BA7: =MAX(ABS(AK7),ABS(AN7)) -> 0.5 | BB7: =MAX(ABS(AK7),ABS(AN7)) -> 0.5 | BC7: =MAX(AU7,AV7) -> 2 | BD7: =ABS(AU7-AV7) -> 0.625
B8: Device-A | C8: =1+C7 -> 3 | D8: 8.9 | E8: f | F8: Marilyn | G8: Monroe | H8: 2003-12-28 | I8: 2012-12-07 | J8: 150 | K8: 100 | L8: -5 | M8: -5.75 | N8: 1.5 | O8: 103 | P8: -3.75 | Q8: 1 | R8: 80 | S8: =M8+N8/2 -> -5 | T8: =P8+Q8/2 -> -3.25 | U8: =ABS(S8-T8) -> 1.75 | V8: =MAX(N8,Q8) -> 1.50 | W8: =MIN((S8-ABS(N8/2)),(T8-ABS(Q8/2))) -> -5.75 | X8: =MAX((S8+ABS(N8/22)),(T8+ABS(Q8/2))) -> -2.75 | Y8: =ABS((S8-ABS(N8/2))-(T8-ABS(Q8/2))) -> 2.00 | Z8: =IF(D8<4,"preschool","school") -> school | AA8: =IF(D8<4,-3,-2) -> -2 | AB8: =IF(D8<4,3,1.75) -> 1.75 | AC8: =IF(X8>4,"T","F") -> F | AD8: =IF(Y8>1.25, "T","F") -> T | AE8: =IF(V8>AB8,"T","F") -> F | AF8: =IF(W8<AA8,"T","F") -> T | AG8: =IF(ABS(L8)>8,"T","F") -> F | AH8: =IF(OR(EXACT("T",AC8:AF8)),"T","F") -> T | AI8: =OR(EXACT("T",AC8:AG8)) -> TRUE | AJ8: 1 | AK8: 0 | AM8: -1.5 | AN8: 0.5 | AO8: 87 | AQ8: pass | AR8: C | AS8: C | AU8: =AJ8+AK8/2 -> 1 | AV8: =AM8+AN8/2 -> -1.25 | AW8: =MIN((AU8-ABS(AK8/2)),(AV8-ABS(AN8/2))) -> -1.5 | AX8: =MIN((AU8-ABS(AK8/2)),(AV8-ABS(AN8/2))) -> -1.5 | AY8: =MAX((AU8+ABS(AK8/2)),(AV8+ABS(AN8/2))) -> 1 | AZ8: =ABS((AU8-ABS(AK8/2))-(AV8-ABS(AN8/2))) -> 2.5 | BA8: =MAX(ABS(AK8),ABS(AN8)) -> 0.5 | BB8: =MAX(ABS(AK8),ABS(AN8)) -> 0.5 | BC8: =MAX(AU8,AV8) -> 1 | BD8: =ABS(AU8-AV8) -> 2.25
B9: Device-A | C9: 4 | D9: 2.6 | E9: f | F9: Daisey | G9: Duck | H9: 2019-01-01 | I9: 2021-08-15 | J9: csm | K9: csm | L9: 10 | M9: 2.25 | N9: 1 | O9: 80 | P9: 2.75 | Q9: 0.75 | R9: 105 | S9: =M9+N9/2 -> 2.75 | T9: =P9+Q9/2 -> 3.125 | U9: =ABS(S9-T9) -> 0.375 | V9: =MAX(N9,Q9) -> 1.00 | W9: =MIN((S9-ABS(N9/2)),(T9-ABS(Q9/2))) -> 2.25 | X9: =MAX((S9+ABS(N9/22)),(T9+ABS(Q9/2))) -> 3.50 | Y9: =ABS((S9-ABS(N9/2))-(T9-ABS(Q9/2))) -> 0.50 | Z9: =IF(D9<4,"preschool","school") -> preschool | AA9: =IF(D9<4,-3,-2) -> -3 | AB9: =IF(D9<4,3,1.75) -> 3 | AC9: =IF(X9>4,"T","F") -> F | AD9: =IF(Y9>1.25, "T","F") -> F | AE9: =IF(V9>AB9,"T","F") -> F | AF9: =IF(W9<AA9,"T","F") -> F | AG9: =IF(ABS(L9)>8,"T","F") -> T | AH9: =IF(OR(EXACT("T",AC9:AF9)),"T","F") -> F | AI9: =OR(EXACT("T",AC9:AG9)) -> TRUE | AJ9: 1 | AK9: 1 | AL9: 90 | AM9: 1.25 | AN9: 1.25 | AO9: 100 | AP9: r | AQ9: refer | AR9: B | AS9: A | AU9: =AJ9+AK9/2 -> 1.5 | AV9: =AM9+AN9/2 -> 1.875 | AW9: =MIN((AU9-ABS(AK9/2)),(AV9-ABS(AN9/2))) -> 1 | AX9: =MIN((AU9-ABS(AK9/2)),(AV9-ABS(AN9/2))) -> 1 | AY9: =MAX((AU9+ABS(AK9/2)),(AV9+ABS(AN9/2))) -> 2.5 | AZ9: =ABS((AU9-ABS(AK9/2))-(AV9-ABS(AN9/2))) -> 0.25 | BA9: =MAX(ABS(AK9),ABS(AN9)) -> 1.25 | BB9: =MAX(ABS(AK9),ABS(AN9)) -> 1.25 | BC9: =MAX(AU9,AV9) -> 1.875 | BD9: =ABS(AU9-AV9) -> 0.375
A10: Add more rows here --> | B10: Device-A | C10: 5 | D10: 0.0 | S10: 0 | T10: 0 | U10: 0 | V10: 0.00 | W10: =MIN((S10-ABS(N10/2)),(T10-ABS(Q10/2))) -> 0 | X10: =MAX((S10+ABS(N10/22)),(T10+ABS(Q10/2))) -> 0.00 | Y10: =ABS((S10-ABS(N10/2))-(T10-ABS(Q10/2))) -> 0.00 | Z10: =IF(D10<4,"preschool","school") -> preschool | AA10: =IF(D10<4,-3,-2) -> -3 | AB10: =IF(D10<4,3,1.75) -> 3 | AC10: =IF(X10>4,"T","F") -> F | AD10: =IF(Y10>1.25, "T","F") -> F | AE10: =IF(V10>AB10,"T","F") -> F | AF10: =IF(W10<AA10,"T","F") -> F | AG10: =IF(ABS(L10)>8,"T","F") -> F | AH10: =IF(OR(EXACT("T",AC10:AF10)),"T","F") -> F | AI10: =OR(EXACT("T",AC10:AG10)) -> FALSE | AR10: D | AS10: D | AU10: 0 | AV10: 0 | AW10: 0 | AX10: 0 | AY10: 0 | AZ10: 0 | BA10: 0 | BB10: 0 | BC10: 0 | BD10: 0
B11: Device-A | C11: last | Z11: =IF(D11<4,"preschool","school") -> preschool | AA11: =IF(D11<4,-3,-2) -> -3 | AB11: =IF(D11<4,3,1.75) -> 3 | AC11: =IF(X11>4,"T","F") -> F | AD11: =IF(Y11>1.25, "T","F") -> F | AE11: =IF(V11>AB11,"T","F") -> F | AF11: =IF(W11<AA11,"T","F") -> F | AG11: =IF(ABS(L11)>8,"T","F") -> F | AH11: =IF(OR(EXACT("T",AC11:AF11)),"T","F") -> F | AI11: =OR(EXACT("T",AC11:AG11)) -> FALSE | AR11: D | AS11: D
AH22: Exam-True | AI22: Exam-False | AQ22: A | AR22: =COUNTIF(AR6:AR11,"A") -> 1 | AS22: =COUNTIF(AS6:AS11,"A") -> 2
AG23: screen+ | AH23: A | AI23: B | AQ23: B | AR23: =COUNTIF(AR6:AR11,"B") -> 1 | AS23: =COUNTIF(AS6:AS11,"B") -> 0
AG24: screen- | AH24: C | AI24: D | AQ24: C | AR24: =COUNTIF(AR6:AR11,"C") -> 1 | AS24: =COUNTIF(AS6:AS11,"C") -> 1
AG25: screen-i | AH25: E | AI25: F | AJ25: inconclusive | AQ25: D | AR25: =COUNTIF(AR6:AR11,"D") -> 3 | AS25: =COUNTIF(AS6:AS11,"D") -> 3
AP26: ARF: | AR26: refractive | AS26: ref + strab
AO27: Sensitivity | AR27: =AR22/(AR22+AR24) -> 50% | AS27: =AS22/(AS22+AS24) -> 67% | AT27: A/(A+C)
AO28: Specificity | AR28: =AR25/(AR23+AR25) -> 75% | AS28: =AS25/(AS23+AS25) -> 100% | AT28: D/(D+B)
AO29: PPV | AR29: =AR22/(AR22+AR23) -> 50% | AS29: =AS22/(AS22+AS23) -> 100% | AT29: A/(A+B)
AO31: ROC curve builder | AR31: 1-specificity | AS31: sensitivty
AO32: Refractive | AQ32: R | AR32: =1-AR28 -> 25% | AS32: =AR27 -> 50%
AO33: Strab + refractive | AQ33: S+R | AR33: =1-AS28 -> 0% | AS33: =AS27 -> 67%
